Workbook

Sheet Kostnader for oppussing av bad
B1: Arbeidsbok med kostnader for oppussing av bad
B2: OBS! Differansekolonner i tabellen viser om faktisk beløp har overgått estimerte beløp. Røde tall viser overgåtte beløp (negative), og svarte tall viser beløp som er under (positive).
E3: Spesifiserte kostnader (NOK) | H3: Totale kostnader (NOK)
B4: Område | C4: Artikler | D4: Antall | E4: Beregnet | F4: Faktisk | G4: Differanse | H4: Beregnet | I4: Faktisk | J4: Differanse
B5: Bad/dusj | C5: Badekar, støpejern, 5'', standard | D5: 1 | E5: kr 250.00 | F5: =RANDBETWEEN(E5+2,E5+20) -> kr 263.00 | G5: =IFERROR(Kostnader[[#This Row],[Beregnet]]-Kostnader[[#This Row],[Faktisk]], "") -> -kr 13.00 | H5: =IFERROR(Kostnader[[#This Row],[Antall]]*Kostnader[[#This Row],[Beregnet]], "") -> kr 250.00 | I5: =IFERROR(Kostnader[[#This Row],[Antall]]*Kostnader[[#This Row],[Faktisk]], "") -> kr 263.00 | J5: =IFERROR(Kostnader[[#This Row],[Beregnet ]]-Kostnader[[#This Row],[Faktisk ]], "") -> -kr 13.00
B6: Bad/dusj | C6: Dusjdører, hengslede, standard | D6: 1 | E6: kr 200.00 | F6: kr 220.00 | G6: =IFERROR(Kostnader[[#This Row],[Beregnet]]-Kostnader[[#This Row],[Faktisk]], "") -> -kr 20.00 | H6: =IFERROR(Kostnader[[#This Row],[Antall]]*Kostnader[[#This Row],[Beregnet]], "") -> kr 200.00 | I6: =IFERROR(Kostnader[[#This Row],[Antall]]*Kostnader[[#This Row],[Faktisk]], "") -> kr 220.00 | J6: =IFERROR(Kostnader[[#This Row],[Beregnet ]]-Kostnader[[#This Row],[Faktisk ]], "") -> -kr 20.00
B7: Bad/dusj | C7: Dusjhode, standard | D7: 1 | E7: kr 50.00 | F7: kr 69.00 | G7: =IFERROR(Kostnader[[#This Row],[Beregnet]]-Kostnader[[#This Row],[Faktisk]], "") -> -kr 19.00 | H7: =IFERROR(Kostnader[[#This Row],[Antall]]*Kostnader[[#This Row],[Beregnet]], "") -> kr 50.00 | I7: =IFERROR(Kostnader[[#This Row],[Antall]]*Kostnader[[#This Row],[Faktisk]], "") -> kr 69.00 | J7: =IFERROR(Kostnader[[#This Row],[Beregnet ]]-Kostnader[[#This Row],[Faktisk ]], "") -> -kr 19.00
B8: Bad/dusj | C8: Badekarvegg, standard | D8: 1 | E8: kr 200.00 | F8: kr 207.00 | G8: =IFERROR(Kostnader[[#This Row],[Beregnet]]-Kostnader[[#This Row],[Faktisk]], "") -> -kr 7.00 | H8: =IFERROR(Kostnader[[#This Row],[Antall]]*Kostnader[[#This Row],[Beregnet]], "") -> kr 200.00 | I8: =IFERROR(Kostnader[[#This Row],[Antall]]*Kostnader[[#This Row],[Faktisk]], "") -> kr 207.00 | J8: =IFERROR(Kostnader[[#This Row],[Beregnet ]]-Kostnader[[#This Row],[Faktisk ]], "") -> -kr 7.00
B9: Skap | C9: Medisinskap 24'', deluxe | D9: 1 | E9: kr 200.00 | F9: kr 207.00 | G9: =IFERROR(Kostnader[[#This Row],[Beregnet]]-Kostnader[[#This Row],[Faktisk]], "") -> -kr 7.00 | H9: =IFERROR(Kostnader[[#This Row],[Antall]]*Kostnader[[#This Row],[Beregnet]], "") -> kr 200.00 | I9: =IFERROR(Kostnader[[#This Row],[Antall]]*Kostnader[[#This Row],[Faktisk]], "") -> kr 207.00 | J9: =IFERROR(Kostnader[[#This Row],[Beregnet ]]-Kostnader[[#This Row],[Faktisk ]], "") -> -kr 7.00
B10: Skap | C10: Dobbel servant 30'', standard | D10: 2 | E10: kr 100.00 | F10: kr 120.00 | G10: =IFERROR(Kostnader[[#This Row],[Beregnet]]-Kostnader[[#This Row],[Faktisk]], "") -> -kr 20.00 | H10: =IFERROR(Kostnader[[#This Row],[Antall]]*Kostnader[[#This Row],[Beregnet]], "") -> kr 200.00 | I10: =IFERROR(Kostnader[[#This Row],[Antall]]*Kostnader[[#This Row],[Faktisk]], "") -> kr 240.00 | J10: =IFERROR(Kostnader[[#This Row],[Beregnet ]]-Kostnader[[#This Row],[Faktisk ]], "") -> -kr 40.00
B11: Benkeplater | C11: Keramikkflis, deluxe (antall i lineære meter) | D11: 5 | E11: kr 22.50 | F11: kr 32.00 | G11: =IFERROR(Kostnader[[#This Row],[Beregnet]]-Kostnader[[#This Row],[Faktisk]], "") -> -kr 9.50 | H11: =IFERROR(Kostnader[[#This Row],[Antall]]*Kostnader[[#This Row],[Beregnet]], "") -> kr 112.50 | I11: =IFERROR(Kostnader[[#This Row],[Antall]]*Kostnader[[#This Row],[Faktisk]], "") -> kr 160.00 | J11: =IFERROR(Kostnader[[#This Row],[Beregnet ]]-Kostnader[[#This Row],[Faktisk ]], "") -> -kr 47.50
B12: Kraner | C12: Kran, badekar, standard | D12: 1 | E12: kr 90.00 | F12: kr 100.00 | G12: =IFERROR(Kostnader[[#This Row],[Beregnet]]-Kostnader[[#This Row],[Faktisk]], "") -> -kr 10.00 | H12: =IFERROR(Kostnader[[#This Row],[Antall]]*Kostnader[[#This Row],[Beregnet]], "") -> kr 90.00 | I12: =IFERROR(Kostnader[[#This Row],[Antall]]*Kostnader[[#This Row],[Faktisk]], "") -> kr 100.00 | J12: =IFERROR(Kostnader[[#This Row],[Beregnet ]]-Kostnader[[#This Row],[Faktisk ]], "") -> -kr 10.00
B13: Kraner | C13: Kran, dusj, enkelt håndtak, standard | D13: 1 | E13: kr 115.00 | F13: kr 130.00 | G13: =IFERROR(Kostnader[[#This Row],[Beregnet]]-Kostnader[[#This Row],[Faktisk]], "") -> -kr 15.00 | H13: =IFERROR(Kostnader[[#This Row],[Antall]]*Kostnader[[#This Row],[Beregnet]], "") -> kr 115.00 | I13: =IFERROR(Kostnader[[#This Row],[Antall]]*Kostnader[[#This Row],[Faktisk]], "") -> kr 130.00 | J13: =IFERROR(Kostnader[[#This Row],[Beregnet ]]-Kostnader[[#This Row],[Faktisk ]], "") -> -kr 15.00
B14: Kraner | C14: Kran til vask, standard | D14: 1 | E14: kr 95.00 | F14: kr 100.00 | G14: =IFERROR(Kostnader[[#This Row],[Beregnet]]-Kostnader[[#This Row],[Faktisk]], "") -> -kr 5.00 | H14: =IFERROR(Kostnader[[#This Row],[Antall]]*Kostnader[[#This Row],[Beregnet]], "") -> kr 95.00 | I14: =IFERROR(Kostnader[[#This Row],[Antall]]*Kostnader[[#This Row],[Faktisk]], "") -> kr 100.00 | J14: =IFERROR(Kostnader[[#This Row],[Beregnet ]]-Kostnader[[#This Row],[Faktisk ]], "") -> -kr 5.00
B15: Gulvbelegg | C15: Keramikkflis, standard (antall i kvadratmeter) | D15: 35 | E15: kr 12.00 | F15: kr 32.00 | G15: =IFERROR(Kostnader[[#This Row],[Beregnet]]-Kostnader[[#This Row],[Faktisk]], "") -> -kr 20.00 | H15: =IFERROR(Kostnader[[#This Row],[Antall]]*Kostnader[[#This Row],[Beregnet]], "") -> kr 420.00 | I15: =IFERROR(Kostnader[[#This Row],[Antall]]*Kostnader[[#This Row],[Faktisk]], "") -> kr 1,120.00 | J15: =IFERROR(Kostnader[[#This Row],[Beregnet ]]-Kostnader[[#This Row],[Faktisk ]], "") -> -kr 700.00
B16: Metalldeler | C16: Håndkleholder, standard | D16: 2 | E16: kr 15.00 | F16: kr 17.00 | G16: =IFERROR(Kostnader[[#This Row],[Beregnet]]-Kostnader[[#This Row],[Faktisk]], "") -> -kr 2.00 | H16: =IFERROR(Kostnader[[#This Row],[Antall]]*Kostnader[[#This Row],[Beregnet]], "") -> kr 30.00 | I16: =IFERROR(Kostnader[[#This Row],[Antall]]*Kostnader[[#This Row],[Faktisk]], "") -> kr 34.00 | J16: =IFERROR(Kostnader[[#This Row],[Beregnet ]]-Kostnader[[#This Row],[Faktisk ]], "") -> -kr 4.00
B17: Metalldeler | C17: Toalettpapirholder | D17: 1 | E17: kr 10.00 | F17: kr 30.00 | G17: =IFERROR(Kostnader[[#This Row],[Beregnet]]-Kostnader[[#This Row],[Faktisk]], "") -> -kr 20.00 | H17: =IFERROR(Kostnader[[#This Row],[Antall]]*Kostnader[[#This Row],[Beregnet]], "") -> kr 10.00 | I17: =IFERROR(Kostnader[[#This Row],[Antall]]*Kostnader[[#This Row],[Faktisk]], "") -> kr 30.00 | J17: =IFERROR(Kostnader[[#This Row],[Beregnet ]]-Kostnader[[#This Row],[Faktisk ]], "") -> -kr 20.00
B18: Belysning | C18: Lysarmatur, standard | D18: 4 | E18: kr 25.00 | F18: kr 36.00 | G18: =IFERROR(Kostnader[[#This Row],[Beregnet]]-Kostnader[[#This Row],[Faktisk]], "") -> -kr 11.00 | H18: =IFERROR(Kostnader[[#This Row],[Antall]]*Kostnader[[#This Row],[Beregnet]], "") -> kr 100.00 | I18: =IFERROR(Kostnader[[#This Row],[Antall]]*Kostnader[[#This Row],[Faktisk]], "") -> kr 144.00 | J18: =IFERROR(Kostnader[[#This Row],[Beregnet ]]-Kostnader[[#This Row],[Faktisk ]], "") -> -kr 44.00
B19: Vasker | C19: Toalett, standard | D19: 2 | E19: kr 60.00 | F19: kr 73.00 | G19: =IFERROR(Kostnader[[#This Row],[Beregnet]]-Kostnader[[#This Row],[Faktisk]], "") -> -kr 13.00 | H19: =IFERROR(Kostnader[[#This Row],[Antall]]*Kostnader[[#This Row],[Beregnet]], "") -> kr 120.00 | I19: =IFERROR(Kostnader[[#This Row],[Antall]]*Kostnader[[#This Row],[Faktisk]], "") -> kr 146.00 | J19: =IFERROR(Kostnader[[#This Row],[Beregnet ]]-Kostnader[[#This Row],[Faktisk ]], "") -> -kr 26.00
B20: Annet | D20: 1 | E20: kr 20.00 | F20: kr 37.00 | G20: =IFERROR(Kostnader[[#This Row],[Beregnet]]-Kostnader[[#This Row],[Faktisk]], "") -> -kr 17.00 | H20: =IFERROR(Kostnader[[#This Row],[Antall]]*Kostnader[[#This Row],[Beregnet]], "") -> kr 20.00 | I20: =IFERROR(Kostnader[[#This Row],[Antall]]*Kostnader[[#This Row],[Faktisk]], "") -> kr 37.00 | J20: =IFERROR(Kostnader[[#This Row],[Beregnet ]]-Kostnader[[#This Row],[Faktisk ]], "") -> -kr 17.00
B21: Delsum | E21: =SUBTOTAL(109,Kostnader[Beregnet]) -> kr 1,464.50 | F21: =SUBTOTAL(109,Kostnader[Faktisk]) -> kr 1,673.00 | G21: =SUBTOTAL(109,Kostnader[Differanse]) -> -kr 208.50 | H21: =SUBTOTAL(109,Kostnader[[Beregnet ]]) -> kr 2,212.50 | I21: =SUBTOTAL(109,Kostnader[[Faktisk ]]) -> kr 3,207.00 | J21: =SUBTOTAL(109,Kostnader[[Differanse ]]) -> -kr 994.50
B23: Uventede kostnader (legg til 30 % estimert) | E23: =IFERROR(Kostnader[[#Totals],[Beregnet]]*0.3, "") -> kr 439.35 | H23: =IFERROR(Kostnader[[#Totals],[Beregnet ]]*0.3, "") -> kr 663.75
B24: Totale kostnader | E24: =IFERROR(SUM(E21:E21), "") -> kr 1,464.50 | H24: =IFERROR(SUM(Kostnader[[#Totals],[Beregnet ]],Overskytende), "") -> kr 2,876.25
